Cogmind - Beta 13 @@@ ROGUE MODE // 2024.04.26 @ 06:30:23 Player: Millea Result: Destroyed by C-57 Dissector with Dual-blade Saw Performance ------------- Evolutions (9) 4500 Regions Visited (22) 4400 Robots Destroyed (147) 735 Value Destroyed (5118) 5118 Prototype IDs (54) 1080 Alien Tech Used (0) 0 Bonus (1461) 1461 TOTAL SCORE: 17294 Bonus ------- High Alert Combat Kills 88 Follower Combat Kills 273 Entered DSFs 500 Aligned with FarCom 300 Met Data Miner 300 Cogmind --------- Core Integrity 0/1600 Matter 300/300 Energy 100/100 System Corruption 15% Temperature Cool (0) Movement Core (50) Location -1/Access Parts ------- > --- POWER (2) -------- (None) > --- PROPULSION (14) -- (None) > --- UTILITY (7) ------ (None) > --- WEAPON (2) ------- (None) > --- INVENTORY (5) ---- Advanced Power Amplifier Advanced Signal Interpreter Authchip [Propulsion] Peak State ------------ > --- POWER ------------ Antimatter Reactor Quantum Reactor > --- PROPULSION ------- Flying QT-Gravjet Exoskeleton Field Propulsion Drive Field Propulsion Array Q-thruster Impulse Thruster Array Impulse Thruster Array > --- UTILITY ---------- Large Storage Unit Advanced ECM Suite Phase Shifter Improved Cloaking Device Improved Cloaking Device Advanced Shield Generator Improved Hacking Suite > --- WEAPON ----------- Vibroblade > --- INVENTORY -------- Centrium Leg Centrium Leg Centrium Leg Centrium Leg Centrium Leg High-density Centrium Wheel Advanced Power Amplifier Advanced Signal Interpreter Authchip [Propulsion] Combat Drone Bay [Rating: 148] Favorites ----------- Power Constructs Engine Ion Engine Power Core Light Nuclear Core Reactor Constructs Propulsion Constructs Treads Light Treads Leg Potential Leg Wheel High-density Centrium Wheel Hover Unit Cooled Gravmag System Flight Unit Constructs Utility Medium Storage Unit Device Armored Scrap Engine Storage Medium Storage Unit Processor 0b10 Decoder Chip [Scout] Hackware Improved Hacking Suite Protection Layered Medium Armor Plating Weapon Constructs Energy Gun Medium Laser Energy Cannon Light EM Pulse Cannon Ballistic Gun Constructs Launcher Grenade Launcher Special Weapon Remote Datajack Slashing Weapon Scythe Build | -11 -10 -10 -9 -9 -9 -8 -8 -8 -8 -6 -6 -6 -6 -6 -6 -5 -5 -4 -3 -3 -2 -1 ------- Run | Yrd Mat Min Mat Min Exi Min Mat Sto Rec Fac Was Fac Low Low Dat Pro Fac Fac Res DSF Res Acc Slots Evolved 18 | . . . 2 . . . 2 . . 4 . . . . . . 2 2 2 . 2 2 Power 1 | . . . . . . . . . . . . . . . . . 1 . . . . . Propulsion 12 | . . . 1 . . . 1 . . 2 . . . . . . 1 2 2 . 2 1 Utility 5 | . . . 1 . . . 1 . . 2 . . . . . . . . . . . 1 Weapon . | . . . . . . . . . . . . . . . . . . . . . . . Parts Attached 135 | 7 2 6 4 4 1 5 12 5 2 2 . 10 9 2 . 4 11 4 . 12 16 17 Power 6 | 1 . . . . . 1 1 1 . . . . . . . . . . . . 1 1 Engine 3 | 1 . . . . . 1 1 . . . . . . . . . . . . . . . Core 1 | . . . . . . . . 1 . . . . . . . . . . . . . . Reactor 2 | . . . . . . . . . . . . . . . . . . . . . 1 1 Propulsion 32 | 2 . . 2 1 . . 6 1 . . . . . . . . 2 . . 4 5 9 Treads 5 | 2 . . 2 1 . . . . . . . . . . . . . . . . . . Leg 7 | . . . . . . . 2 . . . . . . . . . . . . . . 5 Wheel 2 | . . . . . . . . . . . . . . . . . . . . . . 2 Hover 3 | . . . . . . . . . . . . . . . . . 2 . . . . 1 Flight 15 | . . . . . . . 4 1 . . . . . . . . . . . 4 5 1 Utility 70 | 1 1 . 1 1 1 . 2 . 1 2 . 10 9 1 . 4 9 4 . 8 9 6 Device 39 | . 1 . . . . . . . 1 1 . 5 6 1 . 3 4 1 . 7 5 4 Storage 5 | 1 . . . . 1 . . . . . . . . . . 1 . . . . . 2 Processor 6 | . . . . . . . 1 . . 1 . . 1 . . . 1 . . . 2 . Hackware 7 | . . . . . . . 1 . . . . 1 1 . . . 2 . . 1 1 . Protection 13 | . . . 1 1 . . . . . . . 4 1 . . . 2 3 . . 1 . Artifact . | . . . . . . . . . . . . . . . . . . . . . . . Weapon 27 | 3 1 6 1 2 . 4 3 3 1 . . . . 1 . . . . . . 1 1 Energy Gun 4 | 3 . . . . . 1 . . . . . . . . . . . . . . . . Energy Cannon 11 | . . 4 1 1 . 2 2 1 . . . . . . . . . . . . . . Ballistic Gun 1 | . . . . . . . 1 . . . . . . . . . . . . . . . Ballistic Cannon . | . . . . . . . . . . . . . . . . . . . . . . . Launcher 6 | . 1 2 . 1 . 1 . 1 . . . . . . . . . . . . . . Special Weapon 1 | . . . . . . . . . . . . . . . . . . . . . . 1 Impact Weapon . | . . . . . . . . . . . . . . . . . . . . . . . Slashing Weapon 4 | . . . . . . . . 1 1 . . . . 1 . . . . . . 1 . Piercing Weapon . | . . . . . . . . . . . . . . . . . . . . . . . Special Melee Weapon . | . . . . . . . . . . . . . . . . . . . . . . . Unidentified Prototypes 7 | . . . . . . . 1 2 . . . . . . . 2 . . . . 1 1 Parts Lost 66 | . . . 2 2 . 7 1 . . . . 3 4 . . 2 3 5 . 11 10 16 Power 8 | . . . . . . 1 . . . . . . 1 . . . . 1 . 2 1 2 Propulsion 22 | . . . 1 1 . 2 1 . . . . . . . . 1 . 1 . 2 7 6 Utility 27 | . . . . 1 . 1 . . . . . 3 2 . . 1 1 2 . 6 2 8 Weapon 9 | . . . 1 . . 3 . . . . . . 1 . . . 2 1 . 1 . . Highest Loss Streak 11 | . . . 2 1 . 5 1 . . . . 1 4 . . 2 2 2 . 7 4 11 To Critical Strikes . | . . . . . . . . . . . . . . . . . . . . . . . Average Slot Usage (%) 62 | . 98 100 92 99 100 82 66 89 52 51 60 56 56 52 60 60 48 47 33 29 48 51 Engine 3 | . 14 14 11 11 11 11 7 4 . . . 1 . . . . . . . . . . Core 2 | . . . . . . . . 4 4 4 6 4 5 4 6 6 5 4 4 1 . . Treads 6 | . 28 28 31 32 33 25 . . . . . 1 . . . . . . . . . . Hover 1 | . . . . . . . . . . . . 1 . . . . 5 5 . . . . Flight 4 | . . . . . . . 6 36 4 . . 2 6 6 6 6 . . . 1 24 17 Device 12 | . 12 14 11 11 11 11 9 9 8 11 13 15 12 15 20 16 8 12 9 10 6 16 Storage 6 | . 14 14 11 11 11 11 9 9 9 6 6 6 6 6 6 9 5 5 4 3 . 2 Processor 2 | . . . . . . . 5 9 . 1 6 3 5 6 6 6 5 1 . . . . Hackware 2 | . . . . . . . 4 9 9 6 6 3 4 . . . 4 . . . 5 3 Protection 2 | . . . 5 10 11 4 . . . . . . . . . . 1 5 4 1 . 1 Energy Gun 3 | . 26 . . . . 6 4 . . . . 5 5 . . . . . . 3 . . Energy Cannon 6 | . . 27 22 21 22 13 6 7 . . . 5 6 4 . 4 4 3 4 . . . Slashing Weapon 1 | . . . . . . . . . 11 13 13 . . 5 6 6 . . . . 1 3 Naked Turns 24 | . . . . . . . . . . . . . . . . . . . . . . 24 Heaviest Build 76 | 13 16 19 22 22 27 27 24 20 18 22 22 39 32 29 29 32 63 76 34 48 41 73 Greatest Support 98 | 40 40 40 60 60 60 60 60 20 20 24 24 61 50 50 50 50 59 86 57 57 90 98 Greatest Overweight (x) 6 | . . . . . . . 6 . 5 . . 2 2 . . . 1 1 . 1 . . Average Overweight (x) . | . . . . . . . . . . . . . . . . . . . . . . . Largest Inventory Capacity 15 | 8 8 8 8 8 10 10 10 10 10 10 10 10 10 10 10 10 10 10 10 10 5 15 Average Capacity 9 | 6 8 8 8 8 8 10 10 10 10 10 10 10 10 10 10 10 10 10 10 9 5 10 Most Carried 11 | 7 8 8 8 8 8 8 10 10 10 5 4 10 10 10 10 10 10 10 8 9 4 11 Average Carried 7 | 4 6 7 6 7 7 6 7 9 5 4 4 8 9 9 10 10 9 9 8 7 3 6 Final Capacity 10 | 8 8 8 8 8 10 10 10 10 10 10 10 10 10 10 10 10 10 10 10 5 5 5 Final Carried 10 | 6 8 8 6 8 8 6 10 10 5 4 4 9 10 10 10 10 10 8 8 5 4 3 Scrap Engine Consumption 219 | . . . . . . . . . 13 10 6 51 6 2 . 5 35 39 . 39 13 . Constructs Created 11 | . . . . . . . . . 1 1 . 2 . 1 . . 2 1 . 1 2 . Constructs Modified 74 | . . . . . . . . . 3 . . 25 2 1 . 2 12 18 . 1 10 . Class Distribution -------------------- 41% | Construct 37% | Mutant 8% | Infiltrator-Construct 5% | Infiltrator-Sprinter Dominant Class ---------------- Mutant | -10/Materials Mutant | -10/Mines Mutant | -9/Materials Mutant | -9/Mines Mutant | -9/Exiles Mutant | -8/Mines Skirmisher | -8/Materials Scout | -8/Storage Construct | -8/Recycling Mutant | -6/Factory Mutant | -6/Waste Construct | -6/Factory Construct | -6/Lower Caves Construct | -6/Lower Caves Construct | -6/Data Miner Construct | -5/Proximity Caves Construct | -5/Factory Construct | -4/Factory Mutant | -3/Research Mutant | -3/DSF Mutant | -2/Research Infiltrator-Sprinter | -1/Access Resources | -11 -10 -10 -9 -9 -9 -8 -8 -8 -8 -6 -6 -6 -6 -6 -6 -5 -5 -4 -3 -3 -2 -1 ----------- Run | Yrd Mat Min Mat Min Exi Min Mat Sto Rec Fac Was Fac Low Low Dat Pro Fac Fac Res DSF Res Acc Matter Collected 3161 | 212 68 133 35 75 . 36 116 74 30 . . 497 136 76 . 294 510 441 . 105 61 262 Remotely . | . . . . . . . . . . . . . . . . . . . . . . . Salvage Created 6217 | . 350 246 62 231 . 142 179 55 . . . 1692 171 87 . 203 986 1283 . 219 . 311 Parts 322 | . 17 18 4 11 . 8 17 4 . . . 88 6 3 . 7 48 73 . 12 . 6 Haulers Intercepted 9 | . 2 . . . . . 1 1 . . . 2 . . . . 1 . . . . 2 Recyclers Shooed 13 | . 1 . . . . . . . . . . 5 . . . . 4 3 . . . . Parts Field Recycled . | . . . . . . . . . . . . . . . . . . . . . . . Retrieved Matter . | . . . . . . . . . . . . . . . . . . . . . . . Parts Self-Destructed 10 | . . . . . . . . . . . . . 1 2 . 7 . . . . . . Prevented 1 | . . . . . . . . . . . . . . . . 1 . . . . . . Kills | -11 -10 -10 -9 -9 -9 -8 -8 -8 -8 -6 -6 -6 -6 -6 -6 -5 -5 -4 -3 -3 -2 -1 ------- Run | Yrd Mat Min Mat Min Exi Min Mat Sto Rec Fac Was Fac Low Low Dat Pro Fac Fac Res DSF Res Acc Combat Hostiles Destroyed 124 | . 8 10 2 19 . 5 4 . . . . 26 4 1 . 8 11 17 . 6 . 3 Melee 5 | . . 1 1 . . 1 . . . . . . . . . . . . . . . 2 Guns 35 | . 8 . . . . 1 1 . . . . 12 . . . . 1 9 . 3 . . Cannons 53 | . . 2 1 6 . 2 3 . . . . 12 3 1 . 8 9 6 . . . . AOE 20 | . . 6 . 13 . 1 . . . . . . . . . . . . . . . . Classes Destroyed 18 | . 4 . 1 5 . . . . . . . 4 1 . . . 1 1 . 1 . . Worker 9 | . . . . . . . . . . . . 6 . . . . . 3 . . . . Builder 6 | . . . . 2 . . 2 . . . . 1 . . . . . 1 . . . . Tunneler 3 | . . . . 1 . . . . . . . 2 . . . . . . . . . . Hauler 9 | . 2 . . . . . 1 1 . . . 2 . . . . 1 . . . . 2 Recycler 8 | . 1 . . . . . . . . . . 3 . . . . 3 1 . . . . Operator 1 | . . . . . . . . . . . . . . . . . 1 . . . . . Watcher 2 | . . . . . . . . . . . . . . . . . . 2 . . . . Swarmer 42 | . 5 4 1 . . 3 3 . . . . 8 3 1 . 8 4 . . 2 . . Cutter 12 | . . . . . . . . . . . . 8 . . . . . . . 3 . 1 Grunt 21 | . 3 6 . 2 . 2 . . . . . 3 . . . . 1 4 . . . . Brawler 1 | . . . . 1 . . . . . . . . . . . . . . . . . . Sentry 4 | . . . 1 . . . 1 . . . . 1 . . . . . 1 . . . . Demolisher 1 | . . . . 1 . . . . . . . . . . . . . . . . . . Specialist 1 | . . . . . . . . . . . . . . . . . . . . 1 . . Hunter 5 | . . . . . . . . . . . . 2 1 . . . 2 . . . . . Programmer 22 | . . . . . . . . . . . . 4 . . . . 4 12 . . . 2 Samaritan 1 | . . . . . . . . . . . . . 1 . . . . . . . . . Assembled 15 | . . . . 15 . . . . . . . . . . . . . . . . . . Best Kill Streak 18 | . 2 7 2 18 . 3 3 1 . . . 5 3 1 . 4 4 5 . 3 . 2 Combat Bots Only 15 | . 2 7 2 15 . 3 3 . . . . 4 3 1 . 4 3 5 . 3 . 2 Max Kills in Single Turn 5 | . 1 2 1 5 . 1 1 1 . . . 2 1 1 . 1 1 2 . 1 . 1 Gunslinging . | . . . . . . . . . . . . . . . . . . . . . . . Exploded 5 | . . 2 . 5 . 1 . . . . . . . . . . . . . . . . Melee 1 | . . 1 1 . . 1 . . . . . . . . . . . . . . . 1 Uniques/NPCs Destroyed . | . . . . . . . . . . . . . . . . . . . . . . . Combat | -11 -10 -10 -9 -9 -9 -8 -8 -8 -8 -6 -6 -6 -6 -6 -6 -5 -5 -4 -3 -3 -2 -1 -------- Run | Yrd Mat Min Mat Min Exi Min Mat Sto Rec Fac Was Fac Low Low Dat Pro Fac Fac Res DSF Res Acc Hostile Shots Fired 1419 | . 24 37 27 36 . 43 24 . . . . 211 40 24 . 87 107 248 . 91 136 284 Missed 570 | . 8 14 9 10 . 8 12 . . . . 82 14 17 . 23 34 91 . 30 73 145 Damage Taken 16564 | . 222 230 169 451 . 587 166 36 . . . 1992 392 96 . 783 1252 2632 . 1505 1392 4659 Core 3336 | . 40 58 28 31 . 100 76 . . . . 395 46 . . 212 208 106 . 247 165 1624 Absorbed by Shields 944 | . . . . . . . . . . . . . . . . . . 613 . . . 331 Redirected to Shielding 157 | . . . . . . . . . . . . 17 31 . . . . . . . 11 98 Ignored by Resistances 176 | . . . . . . . . . . . . . . . . 176 . . . . . . Regen/Repaired (Parts) 2795 | . . . . . . . . . . . . 795 139 42 . 84 650 964 . 24 97 . Core Remaining (%) 74 | 100 . 60 . . . 60 . . 86 . . . . . . 23 79 90 . 81 88 . Volleys Fired 518 | 1 31 15 16 19 . 23 33 11 . . . 126 15 4 . 31 57 108 . 27 1 . Largest 2 | 2 2 2 2 2 . 2 2 1 . . . 2 2 1 . 1 2 2 . 1 1 . Hottest 179 | 90 90 112 112 112 . 112 128 68 . . . 143 117 82 . 82 110 179 . 89 45 . Shots Fired 783 | 2 60 23 24 25 . 26 53 11 . . . 236 25 4 . 31 66 169 . 27 1 . Gun 379 | 2 58 . . . . 12 29 . . . . 132 10 . . . 9 102 . 24 1 . Cannon 392 | . . 18 24 21 . 13 24 11 . . . 104 15 4 . 31 57 67 . 3 . . Launcher 12 | . 2 5 . 4 . 1 . . . . . . . . . . . . . . . . Special . | . . . . . . . . . . . . . . . . . . . . . . . Kinetic 142 | . . . . . . . 10 . . . . 4 . . . 15 10 102 . . 1 . Thermal 535 | 2 58 . . . . 12 43 11 . . . 232 25 4 . 16 38 67 . 27 . . Explosive 12 | . 2 5 . 4 . 1 . . . . . . . . . . . . . . . . Electromagnetic 94 | . . 18 24 21 . 13 . . . . . . . . . . 18 . . . . . Robot Hit Streak 21 | 1 8 7 9 12 . 13 7 2 . . . 13 5 1 . 5 8 21 . 8 . . Robot Miss Streak 8 | 1 5 6 8 3 . 4 3 1 . . . 5 7 3 . 3 4 4 . 8 . . Penetration Max 2 | . . . . . . . . . . . . . . . . . 1 2 . . . . Secondary Targets . | . . . . . . . . . . . . . . . . . . . . . . . Shots Hit Robots 477 | 1 38 13 11 18 . 15 33 3 . . . 135 11 2 . 16 41 111 . 14 . 15 Core Hits 233 | . 19 11 2 32 . 6 10 1 . . . 58 7 2 . 8 15 43 . 7 . 12 Critical Kills 12 | . . . . . . . . . . . . 6 1 . . . . 2 . 3 . . Critical Parts Destroyed 3 | . . . . . . . . . . . . 3 . . . . . . . . . . Critical Strikes 20 | . 2 . . . . 1 . . . . . 9 1 . . . 1 2 . 3 . 1 Burn 3 | . 2 . . . . 1 . . . . . . . . . . . . . . . . Meltdown 10 | . . . . . . . . . . . . 4 1 . . . . 2 . 3 . . Destroy 5 | . . . . . . . . . . . . 5 . . . . . . . . . . Corrupt 1 | . . . . . . . . . . . . . . . . . 1 . . . . . Sever 1 | . . . . . . . . . . . . . . . . . . . . . . 1 Melee Attacks 57 | . . . . . . . . 1 . 2 . 5 . 2 . . . . . . 1 46 Impact . | . . . . . . . . . . . . . . . . . . . . . . . Slashing 57 | . . . . . . . . 1 . 2 . 5 . 2 . . . . . . 1 46 Piercing . | . . . . . . . . . . . . . . . . . . . . . . . Sneak Attacks 3 | . . . . . . . . . . . . 1 . . . . . . . . . 2 Combat Hostiles . | . . . . . . . . . . . . . . . . . . . . . . . Follow-up Attacks . | . . . . . . . . . . . . . . . . . . . . . . . Damage Inflicted 15528 | 10 491 641 230 1163 . 464 642 62 . . . 3103 235 73 . 397 2207 4425 . 333 . 1052 Guns 5734 | 10 476 . . . . 62 247 . . . . 1527 112 . . . 211 2849 . 240 . . Cannons 6783 | . . 266 227 319 . 225 395 62 . . . 1363 123 23 . 397 1996 1304 . 83 . . Explosions 1660 | . 9 364 . 839 . 176 . . . . . . . . . . . 272 . . . . Melee 1196 | . . . . . . . . . . . . 213 . 50 . . . . . . . 933 Ramming 155 | . 6 11 3 5 . 1 . . . . . . . . . . . . . 10 . 119 Kinetic 3479 | . . . . . . . 123 . . . . 70 . . . 204 233 2849 . . . . Thermal 7726 | 10 476 . . . . 180 519 62 . . . 2820 235 23 . 193 1309 1576 . 323 . . Explosive 1270 | . 9 364 . 839 . 58 . . . . . . . . . . . . . . . . Electromagnetic 1702 | . . 266 227 319 . 225 . . . . . . . . . . 665 . . . . . Impact . | . . . . . . . . . . . . . . . . . . . . . . . Slashing 1196 | . . . . . . . . . . . . 213 . 50 . . . . . . . 933 Piercing . | . . . . . . . . . . . . . . . . . . . . . . . Highest Corruption 27 | . . . . . . . . . . . 5 17 17 13 13 13 2 27 . 2 2 15 Average Corruption 10 | . . . . . . . . . . . 5 11 15 13 13 13 1 13 . 2 1 3 Corruption Purged 4 | . . . . . . . . . . . . . 4 . . . . . . . . . Corruption Blocked . | . . . . . . . . . . . . . . . . . . . . . . . Effects 176 | . . . . . . . . . . . 1 88 15 2 1 10 6 44 . . 3 6 Message Errors 48 | . . . . . . . . . . . 1 26 5 . . 4 2 9 . . 1 . Matter Fused 49 | . . . . . . . . . . . . 21 4 1 1 3 1 14 . . 1 3 Heat Flow Errors 18 | . . . . . . . . . . . . 11 . 1 . . . 4 . . . 2 Energy Discharges 15 | . . . . . . . . . . . . 7 3 . . 1 2 1 . . 1 . Parts Rejected 2 | . . . . . . . . . . . . . . . . 1 . 1 . . . . Parts Fused 1 | . . . . . . . . . . . . 1 . . . . . . . . . . Data Loss (minor) 22 | . . . . . . . . . . . . 12 2 . . . 1 6 . . . 1 Data Loss (major) 9 | . . . . . . . . . . . . 4 1 . . 1 . 3 . . . . Alerts 3 | . . . . . . . . . . . . 2 . . . . . 1 . . . . Misdirections 2 | . . . . . . . . . . . . 1 . . . . . 1 . . . . Weapon Failures 7 | . . . . . . . . . . . . 3 . . . . . 4 . . . . Overload Shots . | . . . . . . . . . . . . . . . . . . . . . . . Overflow Damage 495 | . . 5 . 45 . . 4 . . . . 9 . . . 22 184 151 . . . 75 Projectiles 282 | . . 5 . 6 . . 4 . . . . 9 . . . 22 184 52 . . . . Explosions 138 | . . . . 39 . . . . . . . . . . . . . 99 . . . . Melee 75 | . . . . . . . . . . . . . . . . . . . . . . 75 Knockbacks 1 | . . . . . . . . . . . . . . . . . 1 . . . . . Impact . | . . . . . . . . . . . . . . . . . . . . . . . Kinetic 1 | . . . . . . . . . . . . . . . . . 1 . . . . . Secondary . | . . . . . . . . . . . . . . . . . . . . . . . Self-Inflicted Damage 108 | . 12 . . 38 . 49 . . . . . . . . . . . . . 5 . 4 Shots 4 | . 1 . . 2 . 1 . . . . . . . . . . . . . . . . Rammed 11 | . 1 2 . 2 . . . . . . . . . . . . . . . 2 . 4 Targets Rammed 57 | . 2 3 1 2 . 1 . . . . . . . . . . . . . 2 . 46 Kicked 42 | . . . . . . . . . . . . . . . . . . . . . . 42 Crushed 4 | . 1 1 1 . . 1 . . . . . . . . . . . . . . . . Highest Temperature 487 | 30 222 186 126 222 . 345 288 124 . . . 324 226 241 . 353 390 487 . 456 376 141 Average Temperature 113 | 18 67 84 41 85 . 136 80 41 . . . 110 111 83 . 191 142 134 . 167 105 12 Received Heat Transfer 1412 | . 42 75 9 24 . 225 99 . . . . 177 . 15 . 27 27 55 . 90 517 30 Effects 16 | . . . . . . 2 . . . . . 4 3 . . 1 2 3 . 1 . . Shutdowns 2 | . . . . . . . . . . . . . . . . . 1 1 . . . . Energy Bleed 6 | . . . . . . 1 . . . . . 4 . . . . 1 . . . . . Interference 5 | . . . . . . . . . . . . . 3 . . 1 . 1 . . . . Damage (minor) 3 | . . . . . . 1 . . . . . . . . . . . 1 . 1 . . Siege Activations . | . . . . . . . . . . . . . . . . . . . . . . . Robots Corrupted 3 | . . 1 . . . . . . . . . . . . . . 2 . . . . . Combat Hostiles 2 | . . 1 . . . . . . . . . . . . . . 1 . . . . . Parts Fried 8 | . . . 1 1 . . . . . . . . . . . . 6 . . . . . Impact Corruptions 1 | . . . . . . . . . . . . . . . . . . . . 1 . . Robots Melted 12 | . 1 . . . . . . . . . . 5 1 . . . . 2 . 3 . . Combat Hostiles 8 | . . . . . . . . . . . . 2 1 . . . . 2 . 3 . . Parts Melted 31 | . . . . . . . 1 . . . . 11 4 . . 1 . 8 . 6 . . Heat Transferred 11975 | 25 1412 . . . . 409 1036 111 . . . 4958 444 37 . 296 999 1693 . 555 . . Parts Sabotaged . | . . . . . . . . . . . . . . . . . . . . . . . Parts Stolen . | . . . . . . . . . . . . . . . . . . . . . . . Parts Stripped . | . . . . . . . . . . . . . . . . . . . . . . . Power Chain Reactions 1 | . . . . . . 1 . . . . . . . . . . . . . . . . Alert | -11 -10 -10 -9 -9 -9 -8 -8 -8 -8 -6 -6 -6 -6 -6 -6 -5 -5 -4 -3 -3 -2 -1 ------- Run | Yrd Mat Min Mat Min Exi Min Mat Sto Rec Fac Was Fac Low Low Dat Pro Fac Fac Res DSF Res Acc Peak Influence 771 | . 213 381 304 225 . 121 135 162 83 87 35 290 . . . . 387 520 267 468 771 717 Initial 393 | . . 39 148 118 . . 46 56 63 63 35 10 . . . . 155 84 262 200 263 393 Average 201 | . 66 238 243 118 . 36 47 110 45 70 26 122 . . . . 201 320 262 318 373 390 Maximum Alert Level 3 | . 1 1 1 1 . . . . . . . 1 . . . . 1 2 1 2 3 3 Low Security (%) 52 | 100 98 32 30 72 . 100 100 100 100 100 100 71 . . . . 55 10 . . 14 8 Level 1 39 | . 1 67 69 27 . . . . . . . 28 . . . . 44 76 100 63 55 53 Level 2 7 | . . . . . . . . . . . . . . . . . . 12 . 36 14 37 Level 3 1 | . . . . . . . . . . . . . . . . . . . . . 15 . Level 4 . | . . . . . . . . . . . . . . . . . . . . . . . Level 5 . | . . . . . . . . . . . . . . . . . . . . . . . High Security . | . . . . . . . . . . . . . . . . . . . . . . . Max Security . | . . . . . . . . . . . . . . . . . . . . . . . Sterilizations 1 | . . . . . . . . . . . . . . . . . . . . 1 . . Squads Dispatched 49 | . 1 1 1 . . . 1 1 . . . 9 . . . . 7 7 . 3 7 11 Investigation 12 | . . 1 . . . . . 1 . . . 1 . . . . 2 1 . . 3 3 Extermination 10 | . . . . . . . . . . . . 2 . . . . 2 4 . . 1 1 Reinforcement 23 | . 1 . 1 . . . 1 . . . . 6 . . . . 3 1 . 3 2 5 Assault 3 | . . . . . . . . . . . . . . . . . . . . . 1 2 Garrison 1 | . . . . . . . . . . . . . . . . . . 1 . . . . Intercept . | . . . . . . . . . . . . . . . . . . . . . . . Searches Triggered 4 | . . . . . . . . . . . . . . . . . . . . . 1 3 Data Miner Redirects 1 | . . . . . . . . . . . . . . . . . . . . . 1 . Construction Impeded 4 | . . . . . . . 1 . . . . . . . . . 2 1 . . . . Haulers Reinforced 3 | . . . . . . . . . . . . 2 . . . . 1 . . . . . Active Scanning Responses . | . . . . . . . . . . . . . . . . . . . . . . . Cargo Convoy Interrupts . | . . . . . . . . . . . . . . . . . . . . . . . Stealth | -11 -10 -10 -9 -9 -9 -8 -8 -8 -8 -6 -6 -6 -6 -6 -6 -5 -5 -4 -3 -3 -2 -1 --------- Run | Yrd Mat Min Mat Min Exi Min Mat Sto Rec Fac Was Fac Low Low Dat Pro Fac Fac Res DSF Res Acc Distress Signals 16 | . 2 . 3 . . . . . . . . . . . . . 3 . . . 5 3 Communications Jammed . | . . . . . . . . . . . . . . . . . . . . . . . Distress Signals . | . . . . . . . . . . . . . . . . . . . . . . . Times Spotted 321 | . 13 13 15 21 . 6 12 2 . 1 4 34 3 3 . 11 20 23 . 18 70 52 Peak Tracking Total 23 | . 3 5 5 17 . 3 5 2 . 1 4 7 3 3 . 5 5 5 . 4 23 12 Tactical Retreats 52 | . 3 . 3 . . . . . . . . 5 . 2 . 2 1 . . 4 16 16 Traps | -11 -10 -10 -9 -9 -9 -8 -8 -8 -8 -6 -6 -6 -6 -6 -6 -5 -5 -4 -3 -3 -2 -1 ------- Run | Yrd Mat Min Mat Min Exi Min Mat Sto Rec Fac Was Fac Low Low Dat Pro Fac Fac Res DSF Res Acc Traps Triggered 12 | . 1 . . . . . . 1 . 2 . 6 . . . . . 1 . . 1 . Indirectly . | . . . . . . . . . . . . . . . . . . . . . . . Trap Hack Attempts . | . . . . . . . . . . . . . . . . . . . . . . . Triggered . | . . . . . . . . . . . . . . . . . . . . . . . Disarmed . | . . . . . . . . . . . . . . . . . . . . . . . Reprogrammed . | . . . . . . . . . . . . . . . . . . . . . . . Reused . | . . . . . . . . . . . . . . . . . . . . . . . Traps Extracted . | . . . . . . . . . . . . . . . . . . . . . . . Installed . | . . . . . . . . . . . . . . . . . . . . . . . Triggered 2 | . . . . . . . . . . . . . 1 . . 1 . . . . . . Machines | -11 -10 -10 -9 -9 -9 -8 -8 -8 -8 -6 -6 -6 -6 -6 -6 -5 -5 -4 -3 -3 -2 -1 ---------- Run | Yrd Mat Min Mat Min Exi Min Mat Sto Rec Fac Was Fac Low Low Dat Pro Fac Fac Res DSF Res Acc Machines Disabled 20 | . . . . . . 2 . 3 . . . 2 . . . . 1 10 . . . 2 Max in Single Turn 6 | . . . . . . 2 . 1 . . . 1 . . . . 1 6 . . . 1 Garrison Access 8 | . . . . . . . . . . 1 . 2 . . . . 1 . . . 1 3 Machines Repaired . | . . . . . . . . . . . . . . . . . . . . . . . Machines Dismantled . | . . . . . . . . . . . . . . . . . . . . . . . Machines Sabotaged . | . . . . . . . . . . . . . . . . . . . . . . . Overloaded Fab Kills . | . . . . . . . . . . . . . . . . . . . . . . . Hacking | -11 -10 -10 -9 -9 -9 -8 -8 -8 -8 -6 -6 -6 -6 -6 -6 -5 -5 -4 -3 -3 -2 -1 --------- Run | Yrd Mat Min Mat Min Exi Min Mat Sto Rec Fac Was Fac Low Low Dat Pro Fac Fac Res DSF Res Acc Machines Accessed 63 | . 3 1 1 . 2 . 5 5 6 4 . 5 1 . 4 . 10 2 1 . 5 8 Terminals 43 | . 3 . 1 . . . 5 4 6 3 . 2 . . . . 8 1 1 . 4 5 Fabricators 3 | . . . . . . . . . . . . 1 . . . . 1 . . . 1 . Repair Stations . | . . . . . . . . . . . . . . . . . . . . . . . Recycling Units 1 | . . . . . . . . 1 . . . . . . . . . . . . . . Scanalyzers . | . . . . . . . . . . . . . . . . . . . . . . . Garrison Access 8 | . . . . . . . . . . 1 . 2 . . . . 1 1 . . . 3 Total Hacks 192 | . 6 1 2 . 2 . 14 12 33 17 . 13 1 . 25 . 29 7 1 . 13 16 Successful 90 | . 2 1 1 . 2 . 4 5 17 3 . 7 1 . 25 . 13 3 1 . . 5 Failed 101 | . 4 . 1 . . . 10 7 15 14 . 6 . . . . 16 4 . . 13 11 Catastrophic 21 | . 1 . 1 . . . 1 2 2 1 . 2 . . . . 2 1 . . 4 4 Database Lockouts 1 | . . . . . . . . . 1 . . . . . . . . . . . . . Manual 59 | . 4 . 2 . 1 . 6 6 4 9 . 3 . . . . 17 4 . . . 3 Terminals 132 | . 6 . 2 . . . 14 9 33 14 . 6 . . . . 22 5 1 . 11 9 Fabricators 10 | . . . . . . . . . . . . 3 . . . . 5 . . . 2 . Repair Stations . | . . . . . . . . . . . . . . . . . . . . . . . Recycling Units 3 | . . . . . . . . 3 . . . . . . . . . . . . . . Scanalyzers . | . . . . . . . . . . . . . . . . . . . . . . . Garrison Access 18 | . . . . . . . . . . 3 . 4 . . . . 2 2 . . . 7 Terminal Hacks 73 | . 2 1 1 . 2 . 4 4 17 2 . 2 1 . 25 . 6 2 1 . . 3 Record 9 | . . . . . 1 . . 1 1 . . . . . 6 . . . . . . . Part Schematic 13 | . . . . . . . . 1 3 . . . . . 9 . . . . . . . Robot Schematic 9 | . . . . . . . . . 2 . . . . . 7 . . . . . . . Robot Analysis 4 | . 2 . . . . . 1 . . . . . . . . . 1 . . . . . Prototype ID Bank 8 | . . . . . . . . . 3 1 . 1 . . 3 . . . . . . . Open Door 5 | . . 1 . . . . . 2 . . . . 1 . . . . . . . . 1 Open DSF 1 | . . . . . . . . . . . . . . . . . . . 1 . . . Level Access Points 1 | . . . . . . . . . 1 . . . . . . . . . . . . . Branch Access Points 7 | . . . 1 . . . 1 . 1 1 . 1 . . . . 2 . . . . . Terminal Index 2 | . . . . . . . . . . . . . . . . . 1 1 . . . . Fabricator Index 1 | . . . . . . . . . 1 . . . . . . . . . . . . . Scanalyzer Index 1 | . . . . . . . . . . . . . . . . . 1 . . . . . Garrison Index 1 | . . . . . . . . . . . . . . . . . . . . . . 1 Alert Level 4 | . . . . . . . . . 1 . . . . . . . 1 1 . . . 1 Unreport Threat 4 | . . . . . . . 2 . 2 . . . . . . . . . . . . . Hauler Manifests 1 | . . . . . . . . . 1 . . . . . . . . . . . . . Registered Components 1 | . . . . . . . . . 1 . . . . . . . . . . . . . Derelict Proto ID Bank 1 | . . . . . 1 . . . . . . . . . . . . . . . . . Fabricator Hacks 4 | . . . . . . . . . . . . 1 . . . . 3 . . . . . Load Schematic 3 | . . . . . . . . . . . . 1 . . . . 2 . . . . . Build 1 | . . . . . . . . . . . . . . . . . 1 . . . . . Repair Station Hacks . | . . . . . . . . . . . . . . . . . . . . . . . Recycling Unit Hacks . | . . . . . . . . . . . . . . . . . . . . . . . Scanalyzer . | . . . . . . . . . . . . . . . . . . . . . . . Garrison Access Hacks 5 | . . . . . . . . . . 1 . 2 . . . . 1 . . . . 1 Seal Access 5 | . . . . . . . . . . 1 . 2 . . . . 1 . . . . 1 Unauthorized Hacks 8 | . . . . . . . . 1 . . . 2 . . . . 3 1 . . . 1 Terminals 4 | . . . . . . . . . . . . 1 . . . . 1 1 . . . 1 Assimilate 1 | . . . . . . . . . . . . . . . . . 1 . . . . . Botnet 3 | . . . . . . . . . . . . 1 . . . . . 1 . . . 1 Fabricators 3 | . . . . . . . . . . . . 1 . . . . 2 . . . . . Liberate 1 | . . . . . . . . . . . . . . . . . 1 . . . . . Recompile 2 | . . . . . . . . . . . . 1 . . . . 1 . . . . . Repair Stations . | . . . . . . . . . . . . . . . . . . . . . . . Recycling Units 1 | . . . . . . . . 1 . . . . . . . . . . . . . . Mask 1 | . . . . . . . . 1 . . . . . . . . . . . . . . Scanalyzers . | . . . . . . . . . . . . . . . . . . . . . . . Garrison Access . | . . . . . . . . . . . . . . . . . . . . . . . Data Cores Recovered . | . . . . . . . . . . . . . . . . . . . . . . . Used . | . . . . . . . . . . . . . . . . . . . . . . . Hacking Detections 49 | . 3 . 1 . . . 5 4 5 3 . 5 . . . . 8 2 . . 5 8 Full Trace Events 11 | . . . 1 . . . . 1 1 . . . . . . . 1 1 . . 3 3 Feedback Events 2 | . . . . . . . . . . . . . . . . . . . . . 1 1 Corruption 2 | . . . . . . . . . . . . . . . . . . . . . 1 1 Feedback Blocked . | . . . . . . . . . . . . . . . . . . . . . . . Robot Schematics Acquired 9 | . . . . . . . . . 2 . . . . . 7 . . . . . . . Robots Built . | . . . . . . . . . . . . . . . . . . . . . . . Authchips . | . . . . . . . . . . . . . . . . . . . . . . . Time . | . . . . . . . . . . . . . . . . . . . . . . . Total Robot Build Rating . | . . . . . . . . . . . . . . . . . . . . . . . Part Schematics Acquired 13 | . . . . . . . . 1 3 . . . . . 9 . . . . . . . Parts Built 1 | . . . . . . . . . . . . . . . . . 1 . . . . . Authchips 1 | . . . . . . . . . . . . . . . . . 1 . . . . . Time 169 | . . . . . . . . . . . . . . . . . 169 . . . . . Total Part Build Rating 6 | . . . . . . . . . . . . . . . . . 6 . . . . . Parts Repaired . | . . . . . . . . . . . . . . . . . . . . . . . Time . | . . . . . . . . . . . . . . . . . . . . . . . Parts Recycled . | . . . . . . . . . . . . . . . . . . . . . . . Recycled Matter . | . . . . . . . . . . . . . . . . . . . . . . . Retrieved Matter . | . . . . . . . . . . . . . . . . . . . . . . . Retrieved Components . | . . . . . . . . . . . . . . . . . . . . . . . Parts Scanalyzed . | . . . . . . . . . . . . . . . . . . . . . . . Part Schematics Acquired . | . . . . . . . . . . . . . . . . . . . . . . . Parts Damaged . | . . . . . . . . . . . . . . . . . . . . . . . Bothacking | -11 -10 -10 -9 -9 -9 -8 -8 -8 -8 -6 -6 -6 -6 -6 -6 -5 -5 -4 -3 -3 -2 -1 ------------ Run | Yrd Mat Min Mat Min Exi Min Mat Sto Rec Fac Was Fac Low Low Dat Pro Fac Fac Res DSF Res Acc Used RIF Installer . | . . . . . . . . . . . . . . . . . . . . . . . Robots Hacked . | . . . . . . . . . . . . . . . . . . . . . . . Non-combat . | . . . . . . . . . . . . . . . . . . . . . . . Combat . | . . . . . . . . . . . . . . . . . . . . . . . Robot Hacks Applied . | . . . . . . . . . . . . . . . . . . . . . . . Relay Couplers Released 7 | . . . . . . . . . . . . . . . . . . 4 . . 1 2 Machine Destruction 3 | . . . . . . . . . . . . . . . . . . . . . 1 2 Programmers 4 | . . . . . . . . . . . . . . . . . . 4 . . . . Fabnet Peak Effective % . | . . . . . . . . . . . . . . . . . . . . . . . Robots Rewired . | . . . . . . . . . . . . . . . . . . . . . . . Allies Hacked . | . . . . . . . . . . . . . . . . . . . . . . . Hacks Repelled . | . . . . . . . . . . . . . . . . . . . . . . . Allies | -11 -10 -10 -9 -9 -9 -8 -8 -8 -8 -6 -6 -6 -6 -6 -6 -5 -5 -4 -3 -3 -2 -1 -------- Run | Yrd Mat Min Mat Min Exi Min Mat Sto Rec Fac Was Fac Low Low Dat Pro Fac Fac Res DSF Res Acc Total Allies 8 | . . 1 . 1 . . . . . . 1 . . . . 1 4 . . . . . Largest Group 4 | . . 1 1 1 . . . . . . 1 . . . . 1 4 . . . . . Highest-Rated Group 97 | . . 31 31 31 . . . . . . 31 . . . . 96 97 . . . . . Highest-Rated Ally 96 | . . 31 31 31 . . . . . . 31 . . . . 96 29 . . . . . Total Orders 4 | . . . . . . . . . . . . . . . . . . . . 4 . . EXPLORE 1 | . . . . . . . . . . . . . . . . . . . . 1 . . RETURN 3 | . . . . . . . . . . . . . . . . . . . . 3 . . Ally Attacks 107 | . . 12 15 1 . . . . . . 7 . . . . 11 12 . . 49 . . Total Damage 1711 | . . 190 143 . . . . . . . 145 . . . . 347 113 . . 773 . . Kills 12 | . . 2 3 . . . . . . . . . . . . 2 . . . 5 . . Allies Corrupted 2 | . . . . . . . . . . . . . . . . . 2 . . . . . Allies Melted . | . . . . . . . . . . . . . . . . . . . . . . . Intel | -11 -10 -10 -9 -9 -9 -8 -8 -8 -8 -6 -6 -6 -6 -6 -6 -5 -5 -4 -3 -3 -2 -1 ------- Run | Yrd Mat Min Mat Min Exi Min Mat Sto Rec Fac Was Fac Low Low Dat Pro Fac Fac Res DSF Res Acc Robot Analysis Total 4 | . 2 . . . . . 1 . . . . . . . . . 1 . . . . . Derelict Logs Recovered 5 | . . . . 1 . . . . . . . . 1 . . 3 . . . . . . Drone Launches 5 | . . . . . . . . . . . . . . . . . . . . 5 . . Drone Recoveries 4 | . . . . . . . . . . . . . . . . . . . . 4 . . Decoded 0b10 Intel 19 | . . . . . . . . . . . . . . . . . 16 3 . . . . Traps 12 | . . . . . . . . . . . . . . . . . 11 1 . . . . Emergency Access 7 | . . . . . . . . . . . . . . . . . 5 2 . . . . Exploration | -11 -10 -10 -9 -9 -9 -8 -8 -8 -8 -6 -6 -6 -6 -6 -6 -5 -5 -4 -3 -3 -2 -1 ------------- Run | Yrd Mat Min Mat Min Exi Min Mat Sto Rec Fac Was Fac Low Low Dat Pro Fac Fac Res DSF Res Acc Turns Passed 11527 | 108 672 276 279 744 389 151 392 127 362 188 41 2341 386 126 22 297 1107 1438 8 397 797 879 Spaces Moved 10906 | 58 354 139 121 431 241 59 258 276 357 422 96 2642 572 348 76 359 839 598 11 210 1174 1265 Core 29 | 3 . . . . . . 14 . 2 . . . . . . . . . . 10 . . Treads 1830 | 55 354 139 121 431 241 59 19 . . . . 411 . . . . . . . . . . Legs 741 | . . . . . . . 123 . 331 . . . . . . . . 287 . . . . Wheels 1322 | . . . . . . . . . 21 422 96 569 . . . . . 31 11 172 . . Hover 1597 | . . . . . . . . . . . . 675 . . . . 642 280 . . . . Flight 5387 | . . . . . . . 102 276 3 . . 987 572 348 76 359 197 . . 28 1174 1265 Fastest Speed 22 | 50 160 160 160 160 160 160 31 29 29 38 38 34 29 29 29 29 29 44 72 44 22 29 Average Speed 62 | 154 160 160 160 160 160 160 93 29 41 38 38 51 37 29 29 29 61 91 72 73 35 31 Slowest Speed 350 | 160 160 160 160 160 160 160 350 31 300 38 38 245 245 29 29 29 148 154 72 126 72 44 Overloaded Moves . | . . . . . . . . . . . . . . . . . . . . . . . Propulsion Burnouts . | . . . . . . . . . . . . . . . . . . . . . . . Robots Hopped 48 | . . . . . . . 2 3 . . . . . 2 . . 1 . . . 29 11 Cave-ins Triggered 9 | . . . . . . . . . . . . . . . . . . . . . . 9 Exploration Rate (%) 43 | 4 59 48 17 88 60 18 29 54 67 12 81 23 61 52 68 47 23 7 1 94 44 35 Regions Visited 22 Branch Regions 10 Pre-discovered Areas 2 | . . . . . 1 . . . . . . . . . 1 . . . . . . . Known Exits Taken 6 | . . . 1 . . . 1 . 1 . . 1 . . . . 1 . 1 . . . Unknown Exits Taken 13 | 1 1 1 . 1 1 1 . 1 . . . . 1 1 1 1 . 1 . . 1 . Scrap Searched 11 | . . . . 1 . . . . . . . . 7 2 . 1 . . . . . . Spaces Dug 47 | . 7 5 . 5 . . . 1 . 2 . . . 1 . . 2 1 . . 1 22 Terrain Destroyed 274 | . 13 42 . 20 . 9 . 1 . 2 . . . 1 . . 16 147 . . 1 22 Melee 27 | . . . . . . . . 1 . 2 . . . 1 . . . . . . 1 22 Projectile 83 | . . . . . . . . . . . . . . . . . 16 67 . . . . AOE 164 | . 13 42 . 20 . 9 . . . . . . . . . . . 80 . . . . Terrain Rammed . | . . . . . . . . . . . . . . . . . . . . . . . Walls Destroyed . | . . . . . . . . . . . . . . . . . . . . . . . Machines Disabled . | . . . . . . . . . . . . . . . . . . . . . . . Actions | -11 -10 -10 -9 -9 -9 -8 -8 -8 -8 -6 -6 -6 -6 -6 -6 -5 -5 -4 -3 -3 -2 -1 --------- Run | Yrd Mat Min Mat Min Exi Min Mat Sto Rec Fac Was Fac Low Low Dat Pro Fac Fac Res DSF Res Acc Total 14722 | 72 400 166 181 458 246 88 352 308 576 447 99 3366 723 363 75 519 1365 1315 10 422 1522 1649 Wait 2940 | . 2 . 40 . . . 39 . 203 11 4 572 103 7 . 122 441 604 . 166 355 271 Move 10796 | 57 353 138 120 430 240 58 254 269 356 422 95 2641 571 343 75 358 836 597 10 209 1119 1245 Hop 41 | . . . . . . . 1 3 . . . . . 2 . . 1 . . . 25 9 Pick Up 81 | 7 6 2 . 3 2 1 7 7 1 1 . 5 12 2 . 1 8 1 . 4 1 10 Fast Attach 65 | 5 1 . 2 1 . . 6 4 2 1 . 4 4 1 . 4 3 1 . 5 13 8 Attach 42 | 1 . . 2 1 . 3 5 . . 1 . 5 1 1 . . 3 2 . 5 3 9 Detach 19 | . . . . . . . 3 . 1 . . 6 1 . . . 2 . . 1 3 2 Swap 28 | 1 1 6 . 2 1 2 1 1 . . . 1 4 . . . 5 1 . 2 . . Drop 70 | . 4 2 . . 3 . 3 12 13 1 . 1 12 1 . 3 9 1 . 1 1 3 Fire 518 | 1 31 15 16 19 . 23 33 11 . . . 126 15 4 . 31 57 108 . 27 1 . Melee 57 | . . . . . . . . 1 . 2 . 5 . 2 . . . . . . 1 46 Ram 6 | . . . . . . . . . . . . . . . . . . . . 2 . 4 Kick 42 | . . . . . . . . . . . . . . . . . . . . . . 42 Crush 9 | . 2 3 1 2 . 1 . . . . . . . . . . . . . . . . Escape Stasis 8 | . . . . . . . . . . 8 . . . . . . . . . . . . Rewire . | . . . . . . . . . . . . . . . . . . . . . . . Trap . | . . . . . . . . . . . . . . . . . . . . . . . Miscellaneous . | . . . . . . . . . . . . . . . . . . . . . . . Route ------- -11/Scrapyard -10/Materials (discovered 4 exits: *Mat x3 / *Min) -10/Mines -9/Materials -9/Mines (discovered 3 exits: *Mat x2 / *Exi) -9/Exiles -8/Mines -8/Materials (discovered 2 exits: *Sto x2) -8/Storage -8/Recycling -6/Factory (discovered 2 exits: Low x2) -6/Waste -6/Factory (discovered 2 exits: *Low x2) -6/Lower Caves -6/Lower Caves -6/Data Miner -5/Proximity Caves -5/Factory (discovered 5 exits: *Fac / Upp x2 / Ext x2) -4/Factory -3/Research -3/DSF -2/Research -1/Access (discovered 1 exit: [*Sur]) History --------- Turn | Location | Event 9 | -11/Scrapyard | Discovered new exit (range 15) 109 | -11/Scrapyard | Entered Materials 271 | -10/Materials | Discovered new exit (range 7) 295 | -10/Materials | Discovered new exit (range 16) 305 | -10/Materials | Build established: Mutant 453 | -10/Materials | Discovered new exit (range 16) 530 | -10/Materials | Discovered new exit (range 15) 781 | -10/Materials | Entered Mines 887 | -10/Mines | Escorted by a lone wolf Derelict 896 | -10/Mines | Destroyed 7 combat bots 1014 | -10/Mines | Met a Derelict shopkeep closing up shop 1039 | -10/Mines | Discovered new exit (range 12) 1057 | -10/Mines | Entered Materials 1057 | -9/Materials | Accompanied by 1 ally 1057 | -9/Materials | Evolved 2 slots: Propulsion x1, Utility x1 1222 | -9/Materials | Discovered new exit (range 6) 1291 | -9/Materials | Identified exit to Mines 1336 | -9/Materials | Entered Mines 1337 | -9/Mines | Assembled infested the area 1380 | -9/Mines | Discovered new exit (range 13) 1385 | -9/Mines | Discovered new exit (range 9) 1393 | -9/Mines | Destroyed 15 combat bots 1516 | -9/Mines | Learned 4 Materials zone layouts 1602 | -9/Mines | A weapon hastily lodged in a ceiling crevice suddenly fell to the ground 1653 | -9/Mines | Received a Mining Laser from a helpful Derelict 2011 | -9/Mines | Received a Rocket Launcher from a helpful Derelict 2071 | -9/Mines | Deemed a non-threat by the Exiles lab entrance 2071 | -9/Mines | Discovered new exit (range 6) 2080 | -9/Mines | Entered Exiles 2120 | -9/Exiles | Met 8R-AWN 2146 | -9/Exiles | Met EX-HEX 2192 | -9/Exiles | Met EX-BIN 2212 | -9/Exiles | Aligned with FarCom system 2213 | -9/Exiles | Given EX-Vault access code 2250 | -9/Exiles | Opened EX-Vault 2262 | -9/Exiles | Found Potential Leg 2265 | -9/Exiles | Found Potential Leg 2298 | -9/Exiles | Warned to stay clear of 0b10 Research branches 2343 | -9/Exiles | Met EX-DEC 2352 | -9/Exiles | Learned location of Zion (-7) 2453 | -9/Exiles | Discovered new exit (range 10) 2469 | -9/Exiles | Left Exiles lab with Potential Leg 2469 | -9/Exiles | Entered Mines 2568 | -8/Mines | Lost 5 parts (1p1n1u2w) 2584 | -8/Mines | Discovered new exit (range 7) 2620 | -8/Mines | Entered Materials 2620 | -8/Materials | Evolved 2 slots: Propulsion x1, Utility x1 2786 | -8/Materials | Identified exit to Storage 3012 | -8/Materials | Entered Storage 3015 | -8/Storage | Found Prototype Launcher 3015 | -8/Storage | Identified Gui. Missile Launcher 3136 | -8/Storage | Used back door to open Recycling access 3136 | -8/Storage | Discovered new exit (range 5) 3139 | -8/Storage | Entered Recycling 3141 | -8/Recycling | Found Scrap Engine 3298 | -8/Recycling | Identified exit to Factory 3501 | -8/Recycling | Entered Factory 3501 | -6/Factory | Evolved 4 slots: Propulsion x2, Utility x2 3567 | -6/Factory | Identified exit to Lower Caves 3689 | -6/Factory | Sucked down chute 3689 | -6/Factory | Entered Waste 3690 | -6/Waste | Met a frightened Derelict 3693 | -6/Waste | Spotted C-40 Crusher 3693 | -6/Waste | Spotted C-40 Crusher 3693 | -6/Waste | Spotted C-40 Crusher 3704 | -6/Waste | EMP discharged 3711 | -6/Waste | Spotted C-40 Crusher 3711 | -6/Waste | Spotted C-40 Crusher 3713 | -6/Waste | Spotted C-40 Crusher 3715 | -6/Waste | Discovered new exit (range 22) 3730 | -6/Waste | Entered Factory 3773 | -6/Factory | Discovered exit to Lower Caves (range 12) 3965 | -6/Factory | System corruption reached 10% 4232 | -6/Factory | Build established: Construct 5394 | -6/Factory | Build established: Infiltrator-Construct 6071 | -6/Factory | Entered Lower Caves 6187 | -6/Lower Caves | Learned 4 Factory zone layouts 6375 | -6/Lower Caves | Build established: Construct 6435 | -6/Lower Caves | Core integrity fell below 50% 6449 | -6/Lower Caves | Discovered new exit (range 7) 6457 | -6/Lower Caves | Entered another Lower Caves area 6462 | -6/Lower Caves | Attracted the attention of an 0b10 checkpoint 6469 | -6/Lower Caves | Lost 4 parts (1p2u1w) 6474 | -6/Lower Caves | Spotted B-75 Beast 6566 | -6/Lower Caves | Discovered new exit (range 5) 6583 | -6/Lower Caves | Entered Data Miner 6583 | -6/Data Miner | Discovered new exit (range 6) 6589 | -6/Data Miner | Met Data Miner 6594 | -6/Data Miner | Learned location of Section 7 (-2) 6599 | -6/Data Miner | Received God Mode back door access code from Data Miner 6605 | -6/Data Miner | Entered Proximity Caves 6647 | -5/Proximity Caves | Learned location of 1 exit from Upper Caves 6694 | -5/Proximity Caves | Escorted by Enhanced Grunt 6709 | -5/Proximity Caves | Learned 4 Factory zone layouts 6774 | -5/Proximity Caves | Found Prototype Device 6774 | -5/Proximity Caves | Identified Exp. Thermal Shield 6789 | -5/Proximity Caves | Discovered new exit (range 13) 6902 | -5/Proximity Caves | Entered Factory 6902 | -5/Factory | Evolved 2 slots: Power x1, Propulsion x1 6903 | -5/Factory | Identified exit to Factory 7155 | -5/Factory | Identified exit to Upper Caves 7155 | -5/Factory | Identified exit to Extension 7377 | -5/Factory | Lost 3 allies 7452 | -5/Factory | Fabricated Combat Drone Bay (x1) 8009 | -5/Factory | Entered another Factory area 8009 | -4/Factory | Evolved 2 slots: Propulsion x2 8118 | -4/Factory | Discovered new exit (range 15) 8450 | -4/Factory | System corruption reached 10% 8870 | -4/Factory | Garrison activated, responded to threat 9447 | -4/Factory | Entered Research 9447 | -3/Research | Evolved 2 slots: Propulsion x2 9454 | -3/Research | Identified exit to DSF 9455 | -3/Research | Entered DSF 9488 | -3/DSF | Additional patrols routed to DSF 9495 | -3/DSF | Lost 3 parts (1p2u) 9724 | -3/DSF | Sterilization system engaged 9744 | -3/DSF | Ambient heat levels rising (+10) 9754 | -3/DSF | Build established: Mutant 9759 | -3/DSF | Ambient heat levels rising (+10) 9774 | -3/DSF | Ambient heat levels rising (+10) 9789 | -3/DSF | Ambient heat levels rising (+10) 9804 | -3/DSF | Ambient heat levels rising (+10) 9806 | -3/DSF | Discovered new exit (range 14) 9819 | -3/DSF | Ambient heat levels rising (+10) 9828 | -3/DSF | Lost 7 parts (1p1n4u1w) 9834 | -3/DSF | Ambient heat levels rising (+10) 9849 | -3/DSF | Ambient heat levels rising (+10) 9852 | -3/DSF | Entered Research 9852 | -2/Research | Evolved 2 slots: Propulsion x2 10202 | -2/Research | Spotted B-90 Cyclops 10354 | -2/Research | Spotted B-90 Cyclops 10408 | -2/Research | Found Prototype Slashing Weapon 10408 | -2/Research | Identified Vibroblade 10448 | -2/Research | Lost 4 parts (3n1u) 10450 | -2/Research | Incoming investigation squad redirected 10602 | -2/Research | Search patrols dispatched 10633 | -2/Research | Discovered new exit (range 16) 10649 | -2/Research | Entered Access 10649 | -1/Access | Evolved 2 slots: Propulsion x1, Utility x1 10843 | -1/Access | Spotted B-99 Colossus 10944 | -1/Access | Search patrols dispatched 11149 | -1/Access | Search patrols dispatched 11236 | -1/Access | Build established: Infiltrator-Sprinter 11238 | -1/Access | Discovered new exit (range 5) 11329 | -1/Access | Spotted B-99 Colossus 11399 | -1/Access | Search patrols dispatched 11428 | -1/Access | Core integrity fell below 50% 11446 | -1/Access | Lost 11 parts (2p6n3u) 11452 | -1/Access | Crushed by falling debris 11465 | -1/Access | System corruption reached 10% 11477 | -1/Access | Crushed by falling debris 11481 | -1/Access | Crushed by falling debris 11486 | -1/Access | Crushed by falling debris 11487 | -1/Access | Crushed by falling debris 11488 | -1/Access | Crushed by falling debris 11499 | -1/Access | Core integrity fell below 20% 11505 | -1/Access | Crushed by falling debris 11508 | -1/Access | Crushed by falling debris 11516 | -1/Access | Crushed by falling debris 11517 | -1/Access | Lost 3 parts (3u) 11528 | -1/Access | Destroyed by C-57 Dissector with Dual-blade Saw Last Messages --------------- 11490_ P-80 Master crushed by falling debris. 11495_ Centrium Leg severed. 11495_ Centrium Leg crushed and broken. 11499_ Acquired 10 matter. 11499_ The unstable cave ceiling collapses. 11499_ P-80 Master crushed by falling debris. 11499_ P-80 Master destroyed. 11499_ 26 Matter crushed. 11502_ System corrupted: Matter fused (-7). 11502_ Acquired 7 matter. 11505_ The unstable cave ceiling collapses. 11505_ Crushed by falling debris. 11507_ Hdn. Centrium Wheel severed. 11507_ Hdn. Centrium Wheel crushed and broken. 11508_ The unstable cave ceiling collapses. 11508_ Crushed by falling debris. 11516_ The unstable cave ceiling collapses. 11516_ Crushed by falling debris. 11524_ System corrupted: Heat flow error (+193). 11524_ Slammed into C-57 Dissector. Map ----- +----------------------------------------------------+ | ?????????????????????????????????????????????????? | | ?????????????????????????????????????????????????? | | ?????????????????????????????????????????????????? | | ?????????????????????????????????????????????????? | | ?????????????????????????????????????????????????? | | ?????????????????????????????????????????????????? | | ?????????????????????????????????????????????????? | | ?????????????????????????????????????????????????? | | ?????????????????????????????????????????????????? | | ?????????????????????????????????????????????????? | | ?????????????????????????????????????????????????? | | ?????????????????????????????????????????????????? | | ?????????????????????????????????????????????????? | | ????????????????????????????????################## | | ????????????????????????????????# | | ?????????????x??????????????????# ! | | ???????????????x????????????????# | | ????????????????????????????????# | | ??????????????????????????????### | | ?????????????????????????????### ! | | ????????????????????????????##=## | | ???????????????????????????########## ############ | | ??????????????????????????##c##?????## | | ?????????????????????????#####???????#! | | ????????????????????????##c##????????# | | ????????????????????????#@##?????????# | | ????????????????????????###?????????## """"" | | ????????????????????????????????????# """"" | | ????????????????????????????????????##= """"" | | ?????????????????????????????????????# """"" | | ?????????????????????????????????????# """"" | | ?????????????????????????????????????# """"" | | ?????????????????????????????????????# | | ?????????????????????????????????????# | | ?????????????????????????????????????############+ | | ????????????????s????????????????????# # | | ?????????????????????????????????????# + "" | | ?????????H??????sss??????????????????# # T" | | ?????????????????????????????????????# " # | | ????????????????s????????????????????# """ ?## | | ?????????????????????????????????????# """ ??# | | ?????????????????????????????????????# " ???# | | ?????????????????????????????????????? ???# | | ???????????????????????????????????????? ????# | | ???????????????????????????????????????####????# | | ???????????????????????????????????????????????# | | ???????????????????????????????????????????????# | | ???????????????????????????????????????????????# | | ???????????????????????????????????????????????# | | ???????????????????????????????????????????????# | +----------------------------------------------------+ Best States ------------- Heat Dissipation 77 Energy Generation 43 Energy Capacity 781 Matter Stores 300 Matter Capacity 300 Sight Range 22 Terrain Scan Range 20 Terrain Scan Density 10 ECM Strength 2 Cloak Strength 4 Additional Mass Support 9 Armor Coverage 450 Resistance: KI 20 Resistance: TH 30 Propulsion Shielding 66 Phase Shifting 5 Evasion (%) 75 Targeting Accuracy 8 Melee Accuracy 12 Recoil Reduction 4 Particle Charging 20 Offensive Hacking 24 Defensive Hacking 10 Authchip Count 1 Item Schematics ----------------- Flak Cannon | -8/Storage | Hacked Arm. Treads | -8/Recycling | Hacked Imp. Reaction Control System | -8/Recycling | Hacked Nuclear Core | -8/Recycling | Hacked Combat Drone Bay | -6/Data Miner | Free Lgt. Regenerative Plating | -6/Data Miner | Free Cld. Gravmag System | -6/Data Miner | Free Exp. Heat Sink | -6/Data Miner | Free Cld. Plasma Rifle | -6/Data Miner | Free Imp. Linear Gravjet | -6/Data Miner | Free Imp. Force Booster | -6/Data Miner | Free Railgun | -6/Data Miner | Free Point Defense System | -6/Data Miner | Free Robot Schematics ------------------ H-55 Commando | -8/Recycling | Hacked G-47 Trooper | -8/Recycling | Hacked A-15 Conveyor | -6/Data Miner | Free R-10 Processor | -6/Data Miner | Free L-41 Fighter | -6/Data Miner | Free Y-64 Sentinel | -6/Data Miner | Free B-60 Warrior | -6/Data Miner | Free H-66 Slayer | -6/Data Miner | Free G-67 Veteran | -6/Data Miner | Free Fabricated ------------ Combat Drone Bay | x1 | -5/Factory | Authchip Alien Tech Used ----------------- None Achievements -------------- None Challenges ------------ None Game ------ Seed DispersionTrapBuckler Manual? 0 Play Time 02:13:42 Cumulative 278.0 hours Start 2024.04.26 @ 03:39:24 End 2024.04.26 @ 06:30:23 Sessions 1 Manual Loads 0 Difficulty Rogue Special Mode None Game No. 207 Rogue 207 Adventurer 0 Explorer 0 Win Type - Total 10 Types 6/0/3/1/0/0/0/0/0 Lore% 77 Gallery% 84 Achievement% 71 Wizard Run 0 Options --------- Layout 2 ASCII 1 Keyboard 0 Movement Mouse Keybinds 0 Fullscreen 2 Font 24/Smallcaps Map View 50x44 Zoom Use 0% Tactical HUD 1 Map Filters NONE Filters NONE Steam 1 RUN: 1e00baee-410c-480b-b255-c8b630754a95